Cogmind - Beta 14 @@@ ROGUE MODE // 2024.10.10 @ 19:02:17 Player: LordRauschebart Result: Destroyed by G-47 Trooper with Particle Gun Performance ------------- Evolutions (3) 1500 Regions Visited (6) 1200 Robots Destroyed (22) 110 Value Destroyed (691) 691 Prototype IDs (3) 60 Alien Tech Used (0) 0 Bonus (46) 46 TOTAL SCORE: 3607 Bonus ------- Follower Combat Kills 61 Friendly Fire -15 Cogmind --------- Core Integrity 0/700 Matter 281/300 Energy 100/100 System Corruption 0% Temperature Cool (18) Movement Core (50) Location -7/Factory Parts ------- > --- POWER (2) -------- (None) > --- PROPULSION (3) --- (None) > --- UTILITY (4) ------ Visual Processing Unit > --- WEAPON (4) ------- (None) > --- INVENTORY (5) ---- High-capacity Storage Unit Assault Rifle Great Maul Peak State ------------ > --- POWER ------------ Cooled Deuterium Engine Cooled Deuterium Engine > --- PROPULSION ------- Armored Huge Wheel > --- UTILITY ---------- Improved Heat Sink Visual Processing Unit Layered Light Armor Plating Layered Light Armor Plating > --- WEAPON ----------- Field Laser Heavy Laser EM Pulse Cannon Makeshift Sword > --- INVENTORY -------- High-capacity Storage Unit Assault Rifle Great Maul [Rating: 45] Favorites ----------- Power Improved Ion Engine Engine Improved Ion Engine Power Core Light Nuclear Core Propulsion Wheel Treads Advanced Treads Wheel Wheel Utility Improved Trap Extractor Device Improved Trap Extractor Storage Small Storage Unit Processor Visual Processing Unit Protection Layered Light Armor Plating Weapon Assault Rifle Energy Gun Particle Gun Energy Cannon EM Pulse Cannon Ballistic Gun Assault Rifle Slashing Weapon Makeshift Sword Build | -11 -10 -10 -9 -9 -8 -7 ------- Run | Yrd Mat Min Mat Min Mat Fac Slots Evolved 6 | . . . 2 . 2 2 Power 1 | . . . 1 . . . Propulsion 1 | . . . . . . 1 Utility 2 | . . . . . 2 . Weapon 2 | . . . 1 . . 1 Parts Attached 40 | 6 7 4 3 2 13 5 Power 12 | 1 2 1 1 1 3 3 Engine 10 | 1 2 . 1 1 2 3 Core 2 | . . 1 . . 1 . Reactor . | . . . . . . . Propulsion 6 | 2 . 1 . . 3 . Treads 2 | 1 . 1 . . . . Leg . | . . . . . . . Wheel 4 | 1 . . . . 3 . Hover . | . . . . . . . Flight . | . . . . . . . Utility 12 | 1 4 1 . . 5 1 Device 5 | . 2 1 . . 1 1 Storage 2 | 1 1 . . . . . Processor 2 | . 1 . . . 1 . Hackware . | . . . . . . . Protection 3 | . . . . . 3 . Artifact . | . . . . . . . Weapon 10 | 2 1 1 2 1 2 1 Energy Gun 5 | . 1 . 2 . 2 . Energy Cannon 1 | . . . . . . 1 Ballistic Gun 3 | 2 . 1 . . . . Ballistic Cannon . | . . . . . . . Launcher . | . . . . . . . Special Weapon . | . . . . . . . Impact Weapon . | . . . . . . . Slashing Weapon 1 | . . . . 1 . . Piercing Weapon . | . . . . . . . Special Melee Weapon . | . . . . . . . Unidentified Prototypes 1 | . . . . . . 1 Parts Lost 20 | . 2 . . . 7 11 Power 6 | . 1 . . . 2 3 Propulsion 3 | . . . . . 2 1 Utility 4 | . . . . . 1 3 Weapon 7 | . 1 . . . 2 4 Highest Loss Streak 10 | . 2 . . . 6 10 To Critical Strikes . | . . . . . . . Average Slot Usage (%) 90 | . 92 100 95 100 83 65 Engine 11 | . 11 12 7 12 14 9 Core 5 | . . 1 11 9 2 2 Treads 9 | . 14 14 11 11 6 . Wheel 10 | . 14 14 11 11 8 5 Device 17 | . 13 28 22 22 15 3 Processor 3 | . 3 . . . 7 7 Protection 2 | . . . . . 5 13 Energy Gun 15 | . . 14 21 22 14 12 Ballistic Gun 8 | . 27 14 11 7 . . Slashing Weapon 3 | . . . . 3 9 6 Peak Build Rating 45 | 6 8 15 19 22 34 45 Average Rating 19 | 4 6 9 18 19 25 32 On Entrance 14 | . 6 8 15 19 20 34 Naked Turns . | . . . . . . . Heaviest Build 52 | 12 52 14 24 24 29 46 Greatest Support 28 | 10 10 22 22 22 28 28 Greatest Overweight (x) 15 | 3 5 1 1 1 6 15 Average Overweight (x) . | 1 . . . . . 1 Largest Inventory Capacity 20 | 8 20 5 5 5 5 5 Average Capacity 5 | 7 7 5 5 5 5 5 Most Carried 5 | . 4 4 5 4 5 3 Average Carried 2 | . 1 3 2 2 4 3 Final Capacity 8 | 8 5 5 5 5 5 5 Final Carried 4 | . 3 4 2 4 3 3 Class Distribution -------------------- 35% | Mutant 30% | Scavenger-Skirmisher 22% | Scavenger-Mutant 6% | Skirmisher 4% | Tank Dominant Class ---------------- Mutant | -10/Materials Mutant | -10/Mines Scavenger-Skirmisher | -9/Materials Scavenger-Skirmisher | -9/Mines Scavenger-Mutant | -8/Materials Mutant | -7/Factory Resources | -11 -10 -10 -9 -9 -8 -7 ----------- Run | Yrd Mat Min Mat Min Mat Fac Matter Collected 699 | 183 196 . 164 13 50 93 Remotely . | . . . . . . . Salvage Created 857 | . 179 . 239 14 290 135 Parts 59 | . 21 . 16 . 15 7 Haulers Intercepted . | . . . . . . . Recyclers Shooed 1 | . 1 . . . . . Parts Field Recycled . | . . . . . . . Retrieved Matter . | . . . . . . . Parts Self-Destructed . | . . . . . . . Prevented . | . . . . . . . Kills | -11 -10 -10 -9 -9 -8 -7 ------- Run | Yrd Mat Min Mat Min Mat Fac Combat Hostiles Destroyed 18 | . 5 . 6 1 4 2 Melee 6 | . . . . . 4 2 Guns 12 | . 5 . 6 1 . . Classes Destroyed 4 | . 3 . 1 . . . Watcher 4 | . 2 . . . 2 . Swarmer 6 | . 3 . 2 1 . . Grunt 7 | . 2 . 1 . 4 . Sentry 5 | . . . 3 . . 2 Best Kill Streak 4 | . 3 . 3 1 4 1 Combat Bots Only 4 | . 3 . 3 1 4 1 Max Kills in Single Turn 2 | . 1 . 2 1 1 1 Gunslinging 1 | . . . 1 . . . Exploded . | . . . . . . . Melee 1 | . . . . . 1 1 Uniques/NPCs Destroyed . | . . . . . . . Combat | -11 -10 -10 -9 -9 -8 -7 -------- Run | Yrd Mat Min Mat Min Mat Fac Hostile Shots Fired 373 | . 44 . 18 15 56 240 Missed 102 | . 11 . 5 8 15 63 Damage Taken 3277 | . 445 6 180 77 719 1850 Core 951 | . 85 . 32 8 118 708 Absorbed by Shields . | . . . . . . . Core Remaining (%) 83 | 100 . 66 . 90 78 . Volleys Fired 44 | . 23 . 9 1 4 7 Largest 3 | . 2 . 3 2 2 3 Hottest 195 | . 40 . 141 121 121 195 Shots Fired 94 | . 43 . 25 2 8 16 Gun 92 | . 43 . 25 2 8 14 Cannon 2 | . . . . . . 2 Launcher . | . . . . . . . Special . | . . . . . . . Kinetic 52 | . 43 . 9 . . . Thermal 40 | . . . 16 2 8 14 Explosive . | . . . . . . . Electromagnetic 2 | . . . . . . 2 Robot Hit Streak 9 | . 4 . 5 3 3 9 Robot Miss Streak 6 | . 6 . 2 1 4 2 Penetration Max . | . . . . . . . Secondary Targets 4 | . 2 . 1 1 . . Max Gunslinging Chain 1 | . 1 . 1 1 . . Shots Hit Robots 67 | . 20 . 16 1 13 17 Core Hits 35 | . 11 . 9 1 8 6 Critical Kills . | . . . . . . . Critical Parts Destroyed . | . . . . . . . Critical Strikes 1 | . . . . . 1 . Sever 1 | . . . . . 1 . Melee Attacks 17 | . . . . . 13 4 Impact . | . . . . . . . Slashing 17 | . . . . . 13 4 Piercing . | . . . . . . . Sneak Attacks . | . . . . . . . Combat Hostiles . | . . . . . . . Follow-up Attacks . | . . . . . . . Damage Inflicted 1324 | . 281 . 263 14 382 384 Guns 815 | . 281 . 263 14 60 197 Cannons 45 | . . . . . . 45 Explosions . | . . . . . . . Melee 464 | . . . . . 322 142 Ramming . | . . . . . . . Kinetic 390 | . 281 . 109 . . . Thermal 425 | . . . 154 14 60 197 Explosive . | . . . . . . . Electromagnetic 45 | . . . . . . 45 Impact . | . . . . . . . Slashing 464 | . . . . . 322 142 Piercing . | . . . . . . . Highest Corruption . | . . . . . . . Average Corruption . | . . . . . . . Corruption Purged . | . . . . . . . Corruption Blocked . | . . . . . . . Overload Shots . | . . . . . . . Overflow Damage 10 | . . . . . . 10 Projectiles . | . . . . . . . Explosions . | . . . . . . . Melee 10 | . . . . . . 10 Knockbacks . | . . . . . . . Impact . | . . . . . . . Kinetic . | . . . . . . . Secondary . | . . . . . . . Self-Inflicted Damage . | . . . . . . . Shots . | . . . . . . . Rammed . | . . . . . . . Targets Rammed . | . . . . . . . Kicked . | . . . . . . . Crushed . | . . . . . . . Highest Temperature 613 | . 14 . 321 75 60 613 Average Temperature 151 | . 5 . 110 38 27 251 Received Heat Transfer 1038 | . 195 . 33 9 423 378 Effects 10 | . . . . . . 10 Shutdowns 2 | . . . . . . 2 Energy Bleed 1 | . . . . . . 1 Matter Decay 2 | . . . . . . 2 Short Circuit 1 | . . . . . . 1 Damage (minor) 1 | . . . . . . 1 Damage (major) 3 | . . . . . . 3 Siege Activations . | . . . . . . . Robots Corrupted . | . . . . . . . Combat Hostiles . | . . . . . . . Parts Fried . | . . . . . . . Impact Corruptions . | . . . . . . . Robots Melted . | . . . . . . . Combat Hostiles . | . . . . . . . Parts Melted 2 | . . . 1 . . 1 Heat Transferred 962 | . . . 370 37 148 407 Parts Sabotaged . | . . . . . . . Parts Stolen . | . . . . . . . Parts Stripped . | . . . . . . . Power Chain Reactions . | . . . . . . . Alert | -11 -10 -10 -9 -9 -8 -7 ------- Run | Yrd Mat Min Mat Min Mat Fac Peak Influence 253 | . 144 55 253 100 140 120 Initial 98 | . . 55 21 98 39 40 Average 85 | . 61 55 156 91 92 65 Maximum Alert Level 1 | . . . 1 . . . Low Security (%) 95 | 100 100 100 57 100 100 100 Level 1 4 | . . . 42 . . . Level 2 . | . . . . . . . Level 3 . | . . . . . . . Level 4 . | . . . . . . . Level 5 . | . . . . . . . High Security . | . . . . . . . Max Security . | . . . . . . . Squads Dispatched 1 | . . . . . . 1 Investigation 1 | . . . . . . 1 Extermination . | . . . . . . . Reinforcement . | . . . . . . . Assault . | . . . . . . . Garrison . | . . . . . . . Intercept . | . . . . . . . Searches Triggered . | . . . . . . . Construction Impeded . | . . . . . . . Haulers Reinforced . | . . . . . . . Active Scanning Responses . | . . . . . . . Cargo Convoy Interrupts . | . . . . . . . Stealth | -11 -10 -10 -9 -9 -8 -7 --------- Run | Yrd Mat Min Mat Min Mat Fac Distress Signals 3 | . . . 1 . 2 . Communications Jammed . | . . . . . . . Distress Signals . | . . . . . . . Times Spotted 57 | . 10 . 10 18 11 8 Peak Tracking Total 18 | . 4 . 3 18 5 5 Tactical Retreats 1 | . . . . . . 1 Traps | -11 -10 -10 -9 -9 -8 -7 ------- Run | Yrd Mat Min Mat Min Mat Fac Traps Triggered 3 | . 1 . 1 . 1 . Indirectly . | . . . . . . . Trap Hack Attempts . | . . . . . . . Triggered . | . . . . . . . Disarmed . | . . . . . . . Reprogrammed . | . . . . . . . Reused . | . . . . . . . Traps Extracted . | . . . . . . . Installed . | . . . . . . . Triggered . | . . . . . . . Most Traps Carried 3 | . . . . 3 3 . Machines | -11 -10 -10 -9 -9 -8 -7 ---------- Run | Yrd Mat Min Mat Min Mat Fac Machines Disabled . | . . . . . . . Max in Single Turn . | . . . . . . . Machines Repaired . | . . . . . . . Machines Dismantled . | . . . . . . . Machines Sabotaged . | . . . . . . . Overloaded Fab Kills . | . . . . . . . Hacking | -11 -10 -10 -9 -9 -8 -7 --------- Run | Yrd Mat Min Mat Min Mat Fac Machines Accessed 6 | . 1 1 1 . 2 1 Terminals 4 | . 1 . . . 2 1 Fabricators . | . . . . . . . Repair Stations . | . . . . . . . Recycling Units 1 | . . . 1 . . . Scanalyzers . | . . . . . . . Garrison Access . | . . . . . . . Total Hacks 15 | . 3 1 4 . 5 2 Successful 6 | . 2 1 2 . 1 . Failed 9 | . 1 . 2 . 4 2 Catastrophic 2 | . . . 1 . . 1 Database Lockouts . | . . . . . . . Manual . | . . . . . . . Terminals 10 | . 3 . . . 5 2 Fabricators . | . . . . . . . Repair Stations . | . . . . . . . Recycling Units 4 | . . . 4 . . . Scanalyzers . | . . . . . . . Garrison Access . | . . . . . . . Terminal Hacks 4 | . 2 1 . . 1 . Prototype ID Bank 1 | . . . . . 1 . Open Door 1 | . . 1 . . . . Branch Access Points 1 | . 1 . . . . . Terminal Index 1 | . 1 . . . . . Fabricator Hacks . | . . . . . . . Repair Station Hacks . | . . . . . . . Recycling Unit Hacks 2 | . . . 2 . . . Recycle Component 1 | . . . 1 . . . Report Inventory 1 | . . . 1 . . . Scanalyzer . | . . . . . . . Garrison Access Hacks . | . . . . . . . Unauthorized Hacks . | . . . . . . . Terminals . | . . . . . . . Fabricators . | . . . . . . . Repair Stations . | . . . . . . . Recycling Units . | . . . . . . . Scanalyzers . | . . . . . . . Garrison Access . | . . . . . . . Data Cores Recovered . | . . . . . . . Used . | . . . . . . . Hacking Detections 4 | . 1 . 1 . 1 1 Full Trace Events 4 | . 1 . 1 . 1 1 Feedback Events . | . . . . . . . Feedback Blocked . | . . . . . . . Robot Schematics Acquired . | . . . . . . . Robots Built . | . . . . . . . Authchips . | . . . . . . . Time . | . . . . . . . Total Robot Build Rating . | . . . . . . . Part Schematics Acquired . | . . . . . . . Parts Built . | . . . . . . . Authchips . | . . . . . . . Time . | . . . . . . . Total Part Build Rating . | . . . . . . . Parts Repaired . | . . . . . . . Time . | . . . . . . . Parts Recycled 1 | . . . 1 . . . Recycled Matter . | . . . . . . . Retrieved Matter . | . . . . . . . Retrieved Components . | . . . . . . . Parts Scanalyzed . | . . . . . . . Part Schematics Acquired . | . . . . . . . Parts Damaged . | . . . . . . . Bothacking | -11 -10 -10 -9 -9 -8 -7 ------------ Run | Yrd Mat Min Mat Min Mat Fac Used RIF Installer . | . . . . . . . Robots Hacked . | . . . . . . . Non-combat . | . . . . . . . Combat . | . . . . . . . Robot Hacks Applied . | . . . . . . . Relay Couplers Released . | . . . . . . . Fabnet Peak Effective % . | . . . . . . . Robots Rewired . | . . . . . . . Allies Hacked . | . . . . . . . Hacks Repelled . | . . . . . . . Allies | -11 -10 -10 -9 -9 -8 -7 -------- Run | Yrd Mat Min Mat Min Mat Fac Total Allies 5 | . . 2 . 3 . . Largest Group 5 | . . 2 2 5 5 . Highest-Rated Group 81 | . . 41 41 81 81 . Highest-Rated Ally 31 | . . 31 31 31 31 . Total Orders . | . . . . . . . Ally Attacks 57 | . . . 12 8 37 . Total Damage 765 | . . . 189 148 428 . Kills 7 | . . . 2 3 2 . Allies Corrupted . | . . . . . . . Allies Melted . | . . . . . . . Intel | -11 -10 -10 -9 -9 -8 -7 ------- Run | Yrd Mat Min Mat Min Mat Fac Robot Analysis Total . | . . . . . . . Derelict Logs Recovered 1 | . . . . 1 . . Drone Launches . | . . . . . . . Drone Recoveries . | . . . . . . . Exploration | -11 -10 -10 -9 -9 -8 -7 ------------- Run | Yrd Mat Min Mat Min Mat Fac Turns Passed 1753 | 85 252 85 202 559 362 208 Spaces Moved 1013 | 71 191 71 104 266 213 97 Core 25 | 17 . . . . 3 5 Treads 478 | . . 10 57 266 145 . Legs . | . . . . . . . Wheels 510 | 54 191 61 47 . 65 92 Hover . | . . . . . . . Flight . | . . . . . . . Fastest Speed 50 | 50 80 95 95 145 95 100 Average Speed 145 | 107 88 102 162 207 140 135 Slowest Speed 800 | 200 155 145 225 225 350 800 Overloaded Moves . | . . . . . . . Propulsion Burnouts . | . . . . . . . Robots Hopped . | . . . . . . . Cave-ins Triggered . | . . . . . . . Exploration Rate (%) 22 | 4 37 17 15 59 20 4 Regions Visited 6 Branch Regions 2 Pre-discovered Areas . | . . . . . . . Known Exits Taken 1 | . 1 . . . . . Unknown Exits Taken 5 | 1 . 1 1 1 1 . Scrap Searched . | . . . . . . . Spaces Dug . | . . . . . . . Terrain Destroyed . | . . . . . . . Melee . | . . . . . . . Projectile . | . . . . . . . AOE . | . . . . . . . Terrain Rammed . | . . . . . . . Walls Destroyed . | . . . . . . . Machines Disabled . | . . . . . . . Actions | -11 -10 -10 -9 -9 -8 -7 --------- Run | Yrd Mat Min Mat Min Mat Fac Total 1180 | 76 227 82 118 271 253 153 Wait 41 | . . 1 1 1 . 38 Move 1007 | 70 190 70 103 265 212 97 Hop . | . . . . . . . Pick Up 16 | . 5 4 . 2 5 . Fast Attach 23 | 6 3 . 2 . 7 5 Attach 3 | . . . . . 3 . Detach . | . . . . . . . Swap 14 | . 4 4 1 2 3 . Drop 15 | . 2 3 2 . 6 2 Fire 44 | . 23 . 9 1 4 7 Melee 17 | . . . . . 13 4 Ram . | . . . . . . . Kick . | . . . . . . . Crush . | . . . . . . . Escape Stasis . | . . . . . . . Rewire . | . . . . . . . Trap . | . . . . . . . Miscellaneous . | . . . . . . . Route ------- -11/Scrapyard -10/Materials -10/Mines -9/Materials -9/Mines -8/Materials -7/Factory History --------- Turn | Location | Event 11 | -11/Scrapyard | Discovered new exit (range 16) 86 | -11/Scrapyard | Entered Materials 146 | -10/Materials | Identified exit to Mines 309 | -10/Materials | Build established: Mutant 338 | -10/Materials | Entered Mines 377 | -10/Mines | Discovered new exit (range 8) 387 | -10/Mines | Met a Derelict who couldn't figure out how to use a Trap Extractor 423 | -10/Mines | Entered Materials 423 | -9/Materials | Accompanied by 2 allies 423 | -9/Materials | Evolved 2 slots: Power x1, Weapon x1 435 | -9/Materials | Led the pair of lost Derelicts to an unsafe place 586 | -9/Materials | Discovered new exit (range 16) 625 | -9/Materials | Entered Mines 625 | -9/Mines | Accompanied by 2 allies 626 | -9/Mines | Assembled infested the area 643 | -9/Mines | Met 8R-AWN 687 | -9/Mines | Learned Materials garrison access intel 723 | -9/Mines | Met a Derelict bent on vengeance 789 | -9/Mines | Build established: Scavenger-Skirmisher 1022 | -9/Mines | A weapon hastily lodged in a ceiling crevice suddenly fell to the ground 1132 | -9/Mines | Found a hidden stash of uninstalled traps 1154 | -9/Mines | Discovered new exit (range 7) 1171 | -9/Mines | Assisted by bots powering up and referring to "LRC-V3" 1184 | -9/Mines | Entered Materials 1184 | -8/Materials | Accompanied by 5 allies 1184 | -8/Materials | Evolved 2 slots: Utility x2 1185 | -8/Materials | Loaded intel: 1 garrison access location 1323 | -8/Materials | Build established: Scavenger-Mutant 1431 | -8/Materials | Lost 4 allies 1436 | -8/Materials | Discovered new exit (range 18) 1477 | -8/Materials | Lost 6 parts (2p2n2w) 1546 | -8/Materials | Entered Factory 1546 | -7/Factory | Evolved 2 slots: Propulsion x1, Weapon x1 1743 | -7/Factory | Core integrity fell below 50% 1750 | -7/Factory | Core integrity fell below 20% 1754 | -7/Factory | Destroyed by G-47 Trooper with Particle Gun Last Messages --------------- K-01 Serf collects debris. Y-54 Guardian destroyed. K-01 Serf collects debris. Lyr. Light Armor Plating destroyed. K-01 Serf collects debris. Cld. Deuterium Engine destroyed. K-01 Serf collects debris. K-01 Serf destroyed. K-01 Serf collects debris. Acquired 27 matter. Lyr. Light Armor Plating destroyed. Imp. Heat Sink destroyed. K-01 Serf collects debris. Field Laser destroyed. Mak. Sword destroyed. K-01 Serf collects debris. Cld. Deuterium Engine destroyed. K-01 Serf collects debris. K-01 Serf destroyed. K-01 Serf collects debris. Map ----- +----------------------------------------------------+ | ?????????????????????????????????????????????????? | | ?????????????????????????????????????????????????? | | ?????????????????????????????????????????????????? | | ?????????????????????????????????????????????????? | | ?????????????????????????????????????????????????? | | ?????????????????????????????????????????????????? | | ?????????????????????????????????????????????????? | | ???????????????????????????????#?????????????????? | | ??????????????????????????????? ?????????????????? | | ?????????????????????????????" ?????????????????? | | ?????????????????????????????"T ?????????????????? | | ????????????????????????????? ?????????????????? | | ????????????????????????????? ?????????????????? | | ?????????????????????????????# #?????????????????? | | ?????????????????????????????# #?????????????????? | | ?????????????????????????????# #?????????????????? | | ?????????????????????????????# #?????????????????? | | ?????????????????????????????# #?????????????????? | | ?????????????????????######### #?????????????????? | | ?????????????????????# #?????????????????? | | ?????????????????????# #######+#+######??? | | ?????????????????????# ## #### | | ?????????? ] # = # | | ?????????? + %!%! # """ | | ?????????? # ![=! #= """ | | ?????????????????????# s @%* # """ | | ?????????????????????# * ####### # | | ?????????????????????# #?????# # ** " | | ?????????????????????## ##?????# # ** " | | ??????????????????????# s k #??????# # " | | ??????????????????????# s #??????# # | | ??????????????????????# #??????# + " | | ??????????????????????# g #??????# # " | | ??????????????????????# #??????# # " | | ??????????????????????# #??????# # | | ??????????????????????# g #??????# ####### | | ??????????????????????# #??????# # | | ??????????????????????# #??????# # | | ??????????????????????# #??????# # | | ?????????????????????? #??????# # | | ?????????????????????? #??????# # | | ?????????????????????? ######## # | | ??????????????????????? ?# # | | ??????????????????????????????# ^ # | | ??????????????????????????????# + | | ??????????????????????????????# # | | ??????????????????????????????# # | | ??????????????????????????????# # | | ??????????????????????????????# # | | ??????????????????????????????# # | +----------------------------------------------------+ Best States ------------- Heat Dissipation 34 Energy Generation 31 Energy Capacity 520 Matter Stores 300 Matter Capacity 300 Sight Range 18 Robot Scan Range 15 Terrain Scan Density 10 Armor Coverage 300 Evasion (%) 44 Recoil Reduction 1 Trap Extractor Capacity 6 Item Schematics ----------------- None Robot Schematics ------------------ None Fabricated ------------ Nothing Alien Tech Used ----------------- None Achievements -------------- I Survived The Infestation Made in Tau Ceti IV Slippery One The More The Merrier Challenges ------------ None Game ------ Seed ElectronThrowingLog Manual? 0 Play Time 00:24:30 Cumulative 2.4 hours Start 2024.10.10 @ 17:54:15 End 2024.10.10 @ 19:02:17 Sessions 1 Manual Loads 0 Difficulty Rogue Special Mode None Game No. 5 Rogue 3 Adventurer 2 Explorer 0 Win Type - Total 0 Types 0/0/0/0/0/0/0/0/0 Lore% 1 Gallery% 7 Achievement% 7 Wizard Run 0 Options --------- Layout 1 ASCII 0 Keyboard 0 Movement Numpad Keybinds 1 Fullscreen 1 Font 32/Terminus Map View 50x35 Zoom Use 0% Tactical HUD 0 Map Filters NONE Filters NONE Steam 1 RUN: d133c899-bb6b-4d80-8e25-b56ec56d75f5